[Event "Early-Titled-Tuesday-Blitz-February-20-2024"]
[Site "Chess.com"]
[Date "2024.02.20"]
[Round "10"]
[White "Eagle_2019"]
[Black "Njal28"]
[Result "0-1"]
[WhiteElo "2895"]
[BlackElo "2998"]
[TimeControl "180+1"]
[EndTime "9:58:12 PST"]
[Termination "Njal28 won by resignation"]

1. d4 {[%clk 0:02:44.2]} 1... Nf6 {[%clk 0:02:59.8]} 2. Bg5 {[%clk 0:02:43.9]}
2... d5 {[%clk 0:02:57.5]} 3. Nd2 {[%clk 0:02:43.3]} 3... c5 {[%clk 0:02:56.2]}
4. Bxf6 {[%clk 0:02:42.5]} 4... gxf6 {[%clk 0:02:51.3]} 5. dxc5 {[%clk
0:02:42.3]} 5... e6 {[%clk 0:02:50.4]} 6. e4 {[%clk 0:02:42.3]} 6... Bxc5 {[%clk
0:02:47.3]} 7. Qh5 {[%clk 0:02:41.9]} 7... Nc6 {[%clk 0:02:30.4]} 8. O-O-O
{[%clk 0:02:36.6]} 8... Bxf2 {[%clk 0:02:22.7]} 9. Ngf3 {[%clk 0:02:28.7]} 9...
dxe4 {[%clk 0:02:14.9]} 10. Nxe4 {[%clk 0:02:26.9]} 10... Be3+ {[%clk
0:02:15.3]} 11. Ned2 {[%clk 0:02:27]} 11... Qa5 {[%clk 0:02:09.2]} 12. Qxa5
{[%clk 0:02:15]} 12... Nxa5 {[%clk 0:02:09.5]} 13. Bb5+ {[%clk 0:02:15]} 13...
Ke7 {[%clk 0:02:05.3]} 14. Rhe1 {[%clk 0:02:14.6]} 14... Bh6 {[%clk 0:02:03.1]}
15. Nd4 {[%clk 0:02:06]} 15... e5 {[%clk 0:01:50.6]} 16. Bd3 {[%clk 0:01:47.8]}
16... Rd8 {[%clk 0:01:45.2]} 17. Nf3 {[%clk 0:01:39.2]} 17... Nc6 {[%clk
0:01:34.5]} 18. Kb1 {[%clk 0:01:37.9]} 18... Bg4 {[%clk 0:01:30.2]} 19. Rf1
{[%clk 0:01:18.6]} 19... Nd4 {[%clk 0:01:20.6]} 20. Nxd4 {[%clk 0:01:09.8]}
20... Rxd4 {[%clk 0:01:19.3]} 21. Nf3 {[%clk 0:01:09.6]} 21... Rd6 {[%clk
0:01:03.3]} 22. Rde1 {[%clk 0:01:06.9]} 22... Rad8 {[%clk 0:00:45.9]} 23. Nh4
{[%clk 0:01:00.3]} 23... Bg5 {[%clk 0:00:45.5]} 24. Nf5+ {[%clk 0:00:57.6]}
24... Bxf5 {[%clk 0:00:45.9]} 25. Bxf5 {[%clk 0:00:57.1]} 25... Rd2 {[%clk
0:00:43]} 26. Be4 {[%clk 0:00:54.1]} 26... b6 {[%clk 0:00:40.4]} 27. a3 {[%clk
0:00:37.1]} 27... h5 {[%clk 0:00:40.5]} 28. Bf3 {[%clk 0:00:31.2]} 28... h4
{[%clk 0:00:40]} 29. h3 {[%clk 0:00:26.4]} 29... Bf4 {[%clk 0:00:37.4]} 30. Rd1
{[%clk 0:00:23.1]} 30... f5 {[%clk 0:00:31.6]} 31. Rxd2 {[%clk 0:00:22.4]} 31...
Rxd2 {[%clk 0:00:32.5]} 32. Rd1 {[%clk 0:00:20.5]} 32... Rf2 {[%clk 0:00:32.7]}
33. Bd5 {[%clk 0:00:17.1]} 33... e4 {[%clk 0:00:31]} 34. Re1 {[%clk 0:00:12.6]}
34... Kf6 {[%clk 0:00:29.3]} 35. Bb7 {[%clk 0:00:08.2]} 35... Rxg2 {[%clk
0:00:27.5]} 36. Rf1 {[%clk 0:00:07.9]} 36... Ke5 {[%clk 0:00:27.3]} 37. Bc8
{[%clk 0:00:07.4]} 37... e3 {[%clk 0:00:26.4]} 38. Bb7 {[%clk 0:00:06.7]} 38...
Rh2 {[%clk 0:00:25.4]} 39. Bf3 {[%clk 0:00:05.2]} 39... Bg3 {[%clk 0:00:25.6]}
0-1

[Event "Early-Titled-Tuesday-Blitz-February-20-2024"]
[Site "Chess.com"]
[Date "2024.02.20"]
[Round "10"]
[White "karinachess1"]
[Black "carokannlover213"]
[Result "0-1"]
[WhiteElo "2664"]
[BlackElo "2845"]
[TimeControl "180+1"]
[EndTime "9:58:12 PST"]
[Termination "carokannlover213 won on time"]

1. d4 {[%clk 0:03:00.9]} 1... d5 {[%clk 0:03:00.6]} 2. c4 {[%clk 0:03:00.9]}
2... e6 {[%clk 0:03:01.3]} 3. Nc3 {[%clk 0:03:01.1]} 3... c6 {[%clk 0:03:02]} 4.
e3 {[%clk 0:02:53.3]} 4... Nf6 {[%clk 0:03:01.8]} 5. Bd3 {[%clk 0:02:51.1]} 5...
Nbd7 {[%clk 0:03:01.2]} 6. b3 {[%clk 0:02:43.5]} 6... Bb4 {[%clk 0:02:50.9]} 7.
Bd2 {[%clk 0:02:44.1]} 7... O-O {[%clk 0:02:48.6]} 8. Nf3 {[%clk 0:02:44.2]}
8... dxc4 {[%clk 0:02:48.3]} 9. Bxc4 {[%clk 0:02:39.6]} 9... Bd6 {[%clk
0:02:47.1]} 10. O-O {[%clk 0:02:23.5]} 10... e5 {[%clk 0:02:47.5]} 11. dxe5
{[%clk 0:02:08.2]} 11... Nxe5 {[%clk 0:02:48.4]} 12. Nxe5 {[%clk 0:02:08]} 12...
Bxe5 {[%clk 0:02:48.8]} 13. f4 {[%clk 0:02:08.4]} 13... Bc7 {[%clk 0:02:38.8]}
14. Qc2 {[%clk 0:01:55.1]} 14... Re8 {[%clk 0:02:38.1]} 15. Rae1 {[%clk
0:01:52]} 15... Bf5 {[%clk 0:02:14.9]} 16. Qxf5 {[%clk 0:01:13.5]} 16... Qxd2
{[%clk 0:02:14.5]} 17. Nb1 {[%clk 0:01:03.2]} 17... Qxa2 {[%clk 0:02:09.6]} 18.
e4 {[%clk 0:00:42.7]} 18... Qa5 {[%clk 0:01:17.2]} 19. e5 {[%clk 0:00:38.6]}
19... Bd8 {[%clk 0:01:16]} 20. Qh3 {[%clk 0:00:23.2]} 20... Nd5 {[%clk
0:00:46.4]} 21. f5 {[%clk 0:00:23.2]} 21... Bb6+ {[%clk 0:00:21.9]} 22. Kh1
{[%clk 0:00:23.2]} 22... Bf2 {[%clk 0:00:14.3]} 23. Rc1 {[%clk 0:00:10.7]} 23...
Be3 {[%clk 0:00:10.8]} 24. Rce1 {[%clk 0:00:05.9]} 24... Bf2 {[%clk 0:00:09.8]}
25. Rc1 {[%clk 0:00:05.9]} 25... Bd4 {[%clk 0:00:10.3]} 26. e6 {[%clk
0:00:03.8]} 26... fxe6 {[%clk 0:00:08.7]} 27. fxe6 {[%clk 0:00:04.7]} 27... Nf6
{[%clk 0:00:08.5]} 28. e7+ {[%clk 0:00:04.7]} 28... Kh8 {[%clk 0:00:08.6]} 29.
Rce1 {[%clk 0:00:04.6]} 29... Qc5 {[%clk 0:00:07.2]} 30. Qe6 {[%clk 0:00:02.7]}
30... b5 {[%clk 0:00:07.7]} 31. Bd3 {[%clk 0:00:02.7]} 31... Qd5 {[%clk
0:00:08.2]} 32. Qxd5 {[%clk 0:00:01.6]} 32... Nxd5 {[%clk 0:00:09.1]} 33. Rf7
{[%clk 0:00:01.8]} 33... Bf6 {[%clk 0:00:08.6]} 0-1

[Event "Early-Titled-Tuesday-Blitz-February-20-2024"]
[Site "Chess.com"]
[Date "2024.02.20"]
[Round "10"]
[White "Larina_Maria"]
[Black "AttilaTurzo"]
[Result "1-0"]
[WhiteElo "2292"]
[BlackElo "2464"]
[TimeControl "180+1"]
[EndTime "9:58:12 PST"]
[Termination "Larina_Maria won on time"]

1. e4 {[%clk 0:02:58.8]} 1... c6 {[%clk 0:02:59.9]} 2. d4 {[%clk 0:02:57.7]}
2... d5 {[%clk 0:03:00.8]} 3. f3 {[%clk 0:02:58.1]} 3... Qb6 {[%clk 0:02:59.6]}
4. Nc3 {[%clk 0:02:56.7]} 4... Nf6 {[%clk 0:02:56.2]} 5. e5 {[%clk 0:02:53.8]}
5... Nfd7 {[%clk 0:02:55.5]} 6. f4 {[%clk 0:02:51.8]} 6... e6 {[%clk 0:02:55.8]}
7. Nf3 {[%clk 0:02:51.1]} 7... c5 {[%clk 0:02:56.1]} 8. dxc5 {[%clk 0:02:12.2]}
8... Bxc5 {[%clk 0:02:46.6]} 9. Na4 {[%clk 0:02:08.9]} 9... Qa5+ {[%clk
0:02:44.2]} 10. c3 {[%clk 0:02:04]} 10... Be7 {[%clk 0:02:40.4]} 11. b4 {[%clk
0:02:00.8]} 11... Qc7 {[%clk 0:02:38.1]} 12. Bd2 {[%clk 0:01:31.9]} 12... f6
{[%clk 0:02:13.7]} 13. exf6 {[%clk 0:01:31.1]} 13... Bxf6 {[%clk 0:02:13.3]} 14.
Nd4 {[%clk 0:01:23.8]} 14... O-O {[%clk 0:02:04.7]} 15. Bd3 {[%clk 0:01:18.5]}
15... Nc6 {[%clk 0:01:51.8]} 16. Nxe6 {[%clk 0:01:14]} 16... Re8 {[%clk
0:01:51.9]} 17. Bxh7+ {[%clk 0:01:09.6]} 17... Kf7 {[%clk 0:01:27.3]} 18. f5
{[%clk 0:00:54.4]} 18... Qe5+ {[%clk 0:01:20.4]} 19. Kf2 {[%clk 0:00:46.9]}
19... Nf8 {[%clk 0:01:12.7]} 20. Qh5+ {[%clk 0:00:42.3]} 20... Ke7 {[%clk
0:01:03.3]} 21. Nxf8 {[%clk 0:00:39.1]} 21... Bxf5 {[%clk 0:00:23.7]} 22. Rae1
{[%clk 0:00:32.1]} 22... Rxf8 {[%clk 0:00:18.1]} 23. Rxe5+ {[%clk 0:00:31.1]}
23... Bxe5 {[%clk 0:00:18.1]} 24. Bxf5 {[%clk 0:00:30.2]} 24... d4 {[%clk
0:00:12.9]} 25. Bg5+ {[%clk 0:00:29.4]} 25... Kd6 {[%clk 0:00:12.6]} 26. Qg6+
{[%clk 0:00:24.3]} 26... Kc7 {[%clk 0:00:11.2]} 27. c4 {[%clk 0:00:19.5]} 27...
d3 {[%clk 0:00:05.2]} 28. Nc5 {[%clk 0:00:18.6]} 28... Nd4 {[%clk 0:00:02.6]}
29. Ne6+ {[%clk 0:00:16.8]} 29... Nxe6 {[%clk 0:00:01.5]} 30. Qxe6 {[%clk
0:00:17]} 30... Bd4+ {[%clk 0:00:01.6]} 31. Kg3 {[%clk 0:00:14.4]} 1-0

[Event "Early-Titled-Tuesday-Blitz-February-20-2024"]
[Site "Chess.com"]
[Date "2024.02.20"]
[Round "10"]
[White "SaiAgni_98"]
[Black "Rozhkov_V"]
[Result "0-1"]
[WhiteElo "2559"]
[BlackElo "2451"]
[TimeControl "180+1"]
[EndTime "9:58:16 PST"]
[Termination "Rozhkov_V won by checkmate"]

1. e4 {[%clk 0:03:00.9]} 1... e6 {[%clk 0:03:00]} 2. d4 {[%clk 0:02:59.1]} 2...
d5 {[%clk 0:02:57.7]} 3. Nd2 {[%clk 0:02:59.5]} 3... Nf6 {[%clk 0:02:54.6]} 4.
Bd3 {[%clk 0:02:57.2]} 4... c5 {[%clk 0:02:52.9]} 5. exd5 {[%clk 0:02:54]} 5...
Nxd5 {[%clk 0:02:50.2]} 6. Ngf3 {[%clk 0:02:44.8]} 6... Nf4 {[%clk 0:02:41.8]}
7. Bb5+ {[%clk 0:02:44.5]} 7... Bd7 {[%clk 0:02:41.8]} 8. Bxd7+ {[%clk
0:02:44.3]} 8... Nxd7 {[%clk 0:02:39.5]} 9. O-O {[%clk 0:02:43.8]} 9... Qc7
{[%clk 0:02:36.2]} 10. Ne4 {[%clk 0:02:40.1]} 10... Rd8 {[%clk 0:02:19.8]} 11.
Ne5 {[%clk 0:02:14.6]} 11... Nh3+ {[%clk 0:01:36]} 12. gxh3 {[%clk 0:01:59.6]}
12... Nxe5 {[%clk 0:01:35.8]} 13. Bf4 {[%clk 0:01:49.6]} 13... Rxd4 {[%clk
0:01:31.1]} 14. Qe2 {[%clk 0:01:49.8]} 14... Qc6 {[%clk 0:01:27.9]} 15. Rfe1
{[%clk 0:01:28.3]} 15... Ng6 {[%clk 0:01:16.7]} 16. Bg3 {[%clk 0:01:25.3]} 16...
h5 {[%clk 0:01:12.6]} 17. h4 {[%clk 0:01:22.7]} 17... Be7 {[%clk 0:01:11.2]} 18.
c3 {[%clk 0:01:21.9]} 18... Rd5 {[%clk 0:01:06.8]} 19. Rad1 {[%clk 0:01:11.6]}
19... O-O {[%clk 0:00:36.5]} 20. Rxd5 {[%clk 0:00:49.2]} 20... Qxd5 {[%clk
0:00:37.4]} 21. Rd1 {[%clk 0:00:42]} 21... Qf5 {[%clk 0:00:35.2]} 22. Rd7 {[%clk
0:00:34.1]} 22... Bxh4 {[%clk 0:00:28.8]} 23. Rxb7 {[%clk 0:00:29]} 23... Bxg3
{[%clk 0:00:15.9]} 24. Nxg3 {[%clk 0:00:29.9]} 24... Qb1+ {[%clk 0:00:15.8]} 25.
Qf1 {[%clk 0:00:26.6]} 25... Qxa2 {[%clk 0:00:15.8]} 26. Nxh5 {[%clk 0:00:26.8]}
26... Qd5 {[%clk 0:00:16]} 27. Rxa7 {[%clk 0:00:22.2]} 27... Qxh5 {[%clk
0:00:15.6]} 28. Ra4 {[%clk 0:00:20.6]} 28... Nf4 {[%clk 0:00:14.3]} 29. f3
{[%clk 0:00:20.3]} 29... Qg5+ {[%clk 0:00:13.1]} 30. Kh1 {[%clk 0:00:20.9]}
30... Rd8 {[%clk 0:00:11.3]} 31. Ra1 {[%clk 0:00:18.9]} 31... Ng6 {[%clk
0:00:10.4]} 32. Rd1 {[%clk 0:00:18.3]} 32... Rd2 {[%clk 0:00:10.4]} 33. Rxd2
{[%clk 0:00:16.3]} 33... Qxd2 {[%clk 0:00:11.3]} 34. b4 {[%clk 0:00:14.1]} 34...
cxb4 {[%clk 0:00:10.1]} 35. cxb4 {[%clk 0:00:15]} 35... Qxb4 {[%clk 0:00:11]}
36. Qd3 {[%clk 0:00:15.5]} 36... Qe1+ {[%clk 0:00:10.8]} 37. Kg2 {[%clk
0:00:15.8]} 37... Nf4# {[%clk 0:00:11.2]} 0-1

[Event "Early-Titled-Tuesday-Blitz-February-20-2024"]
[Site "Chess.com"]
[Date "2024.02.20"]
[Round "10"]
[White "janhelmer03"]
[Black "Lucky_Puncher"]
[Result "0-1"]
[WhiteElo "2249"]
[BlackElo "2502"]
[TimeControl "180+1"]
[EndTime "9:58:18 PST"]
[Termination "Lucky_Puncher won on time"]

1. d4 {[%clk 0:03:00.9]} 1... Nf6 {[%clk 0:02:49.5]} 2. c4 {[%clk 0:02:57.7]}
2... g6 {[%clk 0:02:49.4]} 3. Nf3 {[%clk 0:02:57.5]} 3... Bg7 {[%clk 0:02:49.7]}
4. g3 {[%clk 0:02:58.1]} 4... O-O {[%clk 0:02:50.3]} 5. Bg2 {[%clk 0:02:58.8]}
5... d6 {[%clk 0:02:51]} 6. Nc3 {[%clk 0:02:55.5]} 6... Nc6 {[%clk 0:02:51.2]}
7. d5 {[%clk 0:02:55.8]} 7... Na5 {[%clk 0:02:47.4]} 8. b3 {[%clk 0:02:56.3]}
8... Ne4 {[%clk 0:02:43.4]} 9. Nxe4 {[%clk 0:02:54.4]} 9... Bxa1 {[%clk
0:02:43.1]} 10. Bh6 {[%clk 0:02:54.4]} 10... Bg7 {[%clk 0:02:40]} 11. Bxg7
{[%clk 0:02:54.9]} 11... Kxg7 {[%clk 0:02:40.9]} 12. Qd4+ {[%clk 0:02:54.2]}
12... f6 {[%clk 0:02:39.5]} 13. Qc3 {[%clk 0:02:46.6]} 13... b6 {[%clk
0:02:38.5]} 14. b4 {[%clk 0:02:43.6]} 14... Nb7 {[%clk 0:02:37.1]} 15. a3 {[%clk
0:02:36.7]} 15... a5 {[%clk 0:02:25.5]} 16. O-O {[%clk 0:02:35.4]} 16... axb4
{[%clk 0:02:25.3]} 17. axb4 {[%clk 0:02:36.3]} 17... Bf5 {[%clk 0:02:20.6]} 18.
Nd4 {[%clk 0:02:32.1]} 18... Qd7 {[%clk 0:02:10.9]} 19. Ng5 {[%clk 0:02:27.2]}
19... Nd8 {[%clk 0:01:12.2]} 20. e4 {[%clk 0:02:26.7]} 20... Bg4 {[%clk
0:01:09.5]} 21. h3 {[%clk 0:02:26.6]} 21... h6 {[%clk 0:01:06.1]} 22. Ngf3
{[%clk 0:01:13.9]} 22... Bxh3 {[%clk 0:01:04.4]} 23. Kh2 {[%clk 0:01:07.7]}
23... Bxg2 {[%clk 0:01:04]} 24. Kxg2 {[%clk 0:01:08.6]} 24... e5 {[%clk
0:01:01.4]} 25. dxe6 {[%clk 0:00:49.9]} 25... Nxe6 {[%clk 0:01:01]} 26. Ne2
{[%clk 0:00:50.4]} 26... Ng5 {[%clk 0:00:54]} 27. Nfd4 {[%clk 0:00:48.2]} 27...
c5 {[%clk 0:00:48.2]} 28. Nb5 {[%clk 0:00:45.7]} 28... Rae8 {[%clk 0:00:37.5]}
29. f3 {[%clk 0:00:43]} 29... cxb4 {[%clk 0:00:24]} 30. Qxb4 {[%clk 0:00:41.4]}
30... f5 {[%clk 0:00:24.2]} 31. Nxd6 {[%clk 0:00:36.3]} 31... Re6 {[%clk
0:00:23.9]} 32. Rd1 {[%clk 0:00:28.4]} 32... Kh7 {[%clk 0:00:20.4]} 33. Nf4
{[%clk 0:00:27.8]} 33... fxe4 {[%clk 0:00:17.4]} 34. Nxe6 {[%clk 0:00:10.6]}
34... exf3+ {[%clk 0:00:16.8]} 35. Kf1 {[%clk 0:00:09.2]} 35... Qxe6 {[%clk
0:00:15.3]} 0-1

[Event "Early-Titled-Tuesday-Blitz-February-20-2024"]
[Site "Chess.com"]
[Date "2024.02.20"]
[Round "10"]
[White "ShieldingOff"]
[Black "JoliyRoger"]
[Result "0-1"]
[WhiteElo "2317"]
[BlackElo "2518"]
[TimeControl "180+1"]
[EndTime "9:58:19 PST"]
[Termination "JoliyRoger won by checkmate"]

1. d4 {[%clk 0:03:00.9]} 1... Nf6 {[%clk 0:02:58.8]} 2. c4 {[%clk 0:03:00.8]}
2... e6 {[%clk 0:02:58.4]} 3. g3 {[%clk 0:03:00]} 3... c5 {[%clk 0:02:56.8]} 4.
d5 {[%clk 0:02:58.9]} 4... d6 {[%clk 0:02:57.3]} 5. Bg2 {[%clk 0:02:57.5]} 5...
exd5 {[%clk 0:02:57.8]} 6. cxd5 {[%clk 0:02:57.1]} 6... g6 {[%clk 0:02:58.5]} 7.
Nc3 {[%clk 0:02:57.3]} 7... Bg7 {[%clk 0:02:59.4]} 8. Nf3 {[%clk 0:02:57.6]}
8... O-O {[%clk 0:02:58.6]} 9. O-O {[%clk 0:02:57.2]} 9... Na6 {[%clk
0:02:58.5]} 10. Nd2 {[%clk 0:02:52.9]} 10... Rb8 {[%clk 0:02:52.3]} 11. a4
{[%clk 0:02:51.5]} 11... Nb4 {[%clk 0:02:50.7]} 12. Nc4 {[%clk 0:02:50.6]} 12...
a6 {[%clk 0:02:50.7]} 13. Bf4 {[%clk 0:02:37.7]} 13... Ne8 {[%clk 0:02:50.9]}
14. Ne4 {[%clk 0:02:37.1]} 14... b5 {[%clk 0:02:37.6]} 15. Ncxd6 {[%clk
0:02:36]} 15... Nf6 {[%clk 0:01:26.6]} 16. Nxf6+ {[%clk 0:02:08.7]} 16... Bxf6
{[%clk 0:01:16.8]} 17. Ne4 {[%clk 0:02:08.4]} 17... Bf5 {[%clk 0:00:54]} 18.
Nxf6+ {[%clk 0:01:56]} 18... Qxf6 {[%clk 0:00:54.4]} 19. Bxb8 {[%clk 0:01:49.4]}
19... Rxb8 {[%clk 0:00:55.3]} 20. e4 {[%clk 0:01:40.8]} 20... Bd7 {[%clk
0:00:55.6]} 21. axb5 {[%clk 0:01:26.4]} 21... Bxb5 {[%clk 0:00:55.7]} 22. Re1
{[%clk 0:01:24.8]} 22... Nd3 {[%clk 0:00:50.2]} 23. Re2 {[%clk 0:01:10.3]} 23...
Nxb2 {[%clk 0:00:49.9]} 24. Rxb2 {[%clk 0:01:10]} 24... Qxb2 {[%clk 0:00:49]}
25. Rb1 {[%clk 0:00:58.6]} 25... Qc3 {[%clk 0:00:42]} 26. Rc1 {[%clk 0:00:57.1]}
26... Qa3 {[%clk 0:00:37.3]} 27. e5 {[%clk 0:00:55]} 27... Bd3 {[%clk
0:00:32.1]} 28. d6 {[%clk 0:00:46.1]} 28... c4 {[%clk 0:00:32.4]} 29. Bd5 {[%clk
0:00:40.2]} 29... Qb4 {[%clk 0:00:23.1]} 30. Qf3 {[%clk 0:00:35]} 30... Rf8
{[%clk 0:00:23.7]} 31. Qf6 {[%clk 0:00:26.5]} 31... Qb2 {[%clk 0:00:19.6]} 32.
Qf4 {[%clk 0:00:14.2]} 32... Qa3 {[%clk 0:00:14.6]} 33. e6 {[%clk 0:00:10.5]}
33... fxe6 {[%clk 0:00:14.6]} 34. Bxe6+ {[%clk 0:00:10.3]} 34... Kg7 {[%clk
0:00:15.2]} 35. Qd4+ {[%clk 0:00:07.4]} 35... Rf6 {[%clk 0:00:14.3]} 36. d7
{[%clk 0:00:06.5]} 36... Qxc1+ {[%clk 0:00:14.3]} 37. Kg2 {[%clk 0:00:05.8]}
37... Qf1# {[%clk 0:00:14.9]} 0-1

[Event "Early-Titled-Tuesday-Blitz-February-20-2024"]
[Site "Chess.com"]
[Date "2024.02.20"]
[Round "10"]
[White "Zq1"]
[Black "Yan_Dyomin2010"]
[Result "0-1"]
[WhiteElo "2517"]
[BlackElo "2723"]
[TimeControl "180+1"]
[EndTime "9:58:20 PST"]
[Termination "Yan_Dyomin2010 won by resignation"]

1. d4 {[%clk 0:03:00.9]} 1... Nf6 {[%clk 0:02:59.5]} 2. c4 {[%clk 0:03:00.9]}
2... g6 {[%clk 0:02:58.4]} 3. Nc3 {[%clk 0:03:00.1]} 3... d5 {[%clk 0:02:58.1]}
4. Nf3 {[%clk 0:02:59.6]} 4... Bg7 {[%clk 0:02:57.9]} 5. cxd5 {[%clk 0:02:59.2]}
5... Nxd5 {[%clk 0:02:58.8]} 6. Bd2 {[%clk 0:02:59.3]} 6... O-O {[%clk
0:02:57.6]} 7. Rc1 {[%clk 0:02:58.5]} 7... Nxc3 {[%clk 0:02:55.7]} 8. Bxc3
{[%clk 0:02:57.9]} 8... b6 {[%clk 0:02:53.4]} 9. e3 {[%clk 0:02:56.4]} 9... Bb7
{[%clk 0:02:52.8]} 10. Be2 {[%clk 0:02:56.3]} 10... Nd7 {[%clk 0:02:51.1]} 11.
O-O {[%clk 0:02:55.6]} 11... c5 {[%clk 0:02:51.2]} 12. Qb3 {[%clk 0:02:35.5]}
12... cxd4 {[%clk 0:02:50.2]} 13. Nxd4 {[%clk 0:02:29.3]} 13... Nc5 {[%clk
0:02:49.8]} 14. Qa3 {[%clk 0:02:27.2]} 14... e6 {[%clk 0:02:34.3]} 15. Rfd1
{[%clk 0:02:25.7]} 15... Qe7 {[%clk 0:02:33.5]} 16. Nb3 {[%clk 0:02:22.5]} 16...
Bxc3 {[%clk 0:02:26.9]} 17. Rxc3 {[%clk 0:02:21.7]} 17... Qg5 {[%clk 0:02:27.5]}
18. Bf1 {[%clk 0:02:13.8]} 18... Nxb3 {[%clk 0:02:25.4]} 19. axb3 {[%clk
0:02:00.8]} 19... Rfd8 {[%clk 0:02:12.4]} 20. Rcd3 {[%clk 0:01:50.5]} 20... Rxd3
{[%clk 0:02:07.7]} 21. Rxd3 {[%clk 0:01:50.4]} 21... Bd5 {[%clk 0:02:07.2]} 22.
b4 {[%clk 0:01:24.4]} 22... h5 {[%clk 0:02:04.8]} 23. h3 {[%clk 0:01:19.5]}
23... Qe7 {[%clk 0:01:58.7]} 24. Rc3 {[%clk 0:01:12]} 24... Qd7 {[%clk
0:01:52.4]} 25. b5 {[%clk 0:01:09.6]} 25... Bb7 {[%clk 0:01:34.8]} 26. Qa1
{[%clk 0:01:06.2]} 26... Be4 {[%clk 0:01:25.8]} 27. Qc1 {[%clk 0:01:05.1]} 27...
Qd6 {[%clk 0:01:07.4]} 28. Rc8+ {[%clk 0:00:58.7]} 28... Rxc8 {[%clk 0:01:05.8]}
29. Qxc8+ {[%clk 0:00:58.4]} 29... Kg7 {[%clk 0:01:05.5]} 30. Qc3+ {[%clk
0:00:58.1]} 30... e5 {[%clk 0:01:01.3]} 31. f4 {[%clk 0:00:50.1]} 31... Kf6
{[%clk 0:00:55.8]} 32. Kf2 {[%clk 0:00:46.7]} 32... Ke6 {[%clk 0:00:54.7]} 33.
Bc4+ {[%clk 0:00:45.2]} 33... Bd5 {[%clk 0:00:44]} 34. Bxd5+ {[%clk 0:00:39.3]}
34... Qxd5 {[%clk 0:00:43.6]} 35. Qc8+ {[%clk 0:00:27.9]} 35... Qd7 {[%clk
0:00:36]} 36. Qc4+ {[%clk 0:00:22.6]} 36... Kf6 {[%clk 0:00:28.1]} 37. Qc3
{[%clk 0:00:18.4]} 37... Qxb5 {[%clk 0:00:26.1]} 38. g4 {[%clk 0:00:16.9]} 38...
hxg4 {[%clk 0:00:25.3]} 39. hxg4 {[%clk 0:00:16.9]} 39... Qc5 {[%clk 0:00:25.4]}
40. g5+ {[%clk 0:00:15.9]} 40... Ke7 {[%clk 0:00:25.1]} 41. Qd3 {[%clk 0:00:13]}
41... exf4 {[%clk 0:00:24.4]} 42. Qe4+ {[%clk 0:00:13.1]} 42... Kd7 {[%clk
0:00:21.6]} 43. Qxf4 {[%clk 0:00:12.6]} 43... Qf5 {[%clk 0:00:21.2]} 0-1

[Event "Early-Titled-Tuesday-Blitz-February-20-2024"]
[Site "Chess.com"]
[Date "2024.02.20"]
[Round "10"]
[White "ilqar_74"]
[Black "chess94cu"]
[Result "0-1"]
[WhiteElo "2823"]
[BlackElo "2678"]
[TimeControl "180+1"]
[EndTime "9:58:21 PST"]
[Termination "chess94cu won by resignation"]

1. e4 {[%clk 0:03:00.9]} 1... c6 {[%clk 0:02:58.4]} 2. Nf3 {[%clk 0:03:01.2]}
2... d5 {[%clk 0:02:59.3]} 3. Nc3 {[%clk 0:03:02]} 3... Bg4 {[%clk 0:02:59]} 4.
h3 {[%clk 0:03:02.1]} 4... Bxf3 {[%clk 0:02:59.2]} 5. Qxf3 {[%clk 0:03:03]} 5...
e6 {[%clk 0:02:59.6]} 6. d4 {[%clk 0:03:03.3]} 6... dxe4 {[%clk 0:02:59.3]} 7.
Qxe4 {[%clk 0:03:04.2]} 7... Nf6 {[%clk 0:02:58.7]} 8. Qd3 {[%clk 0:03:04.5]}
8... Nbd7 {[%clk 0:02:57.7]} 9. g3 {[%clk 0:03:04.7]} 9... Bd6 {[%clk 0:02:57]}
10. Bg2 {[%clk 0:03:04.8]} 10... h6 {[%clk 0:02:55.6]} 11. O-O {[%clk
0:03:05.2]} 11... O-O {[%clk 0:02:56.3]} 12. Ne4 {[%clk 0:03:05.4]} 12... Nxe4
{[%clk 0:02:56]} 13. Qxe4 {[%clk 0:03:06.3]} 13... Nf6 {[%clk 0:02:56.4]} 14.
Qe2 {[%clk 0:03:06.7]} 14... Re8 {[%clk 0:02:55.5]} 15. c4 {[%clk 0:03:05.9]}
15... Qc7 {[%clk 0:02:49.4]} 16. f4 {[%clk 0:03:02.4]} 16... c5 {[%clk
0:02:48.7]} 17. dxc5 {[%clk 0:03:02.6]} 17... Bxc5+ {[%clk 0:02:49.3]} 18. Kh2
{[%clk 0:03:01.5]} 18... Rad8 {[%clk 0:02:48.5]} 19. b3 {[%clk 0:02:58.1]} 19...
h5 {[%clk 0:02:40.5]} 20. Bb2 {[%clk 0:02:53.2]} 20... Bd4 {[%clk 0:02:40.6]}
21. Rae1 {[%clk 0:02:44.3]} 21... h4 {[%clk 0:02:33.5]} 22. g4 {[%clk
0:02:40.8]} 22... Bxb2 {[%clk 0:02:33.3]} 23. Qxb2 {[%clk 0:02:41.7]} 23... Rd3
{[%clk 0:02:33.3]} 24. Qe5 {[%clk 0:02:38]} 24... Qd7 {[%clk 0:02:05]} 25. Rf3
{[%clk 0:02:23.4]} 25... Rd8 {[%clk 0:02:00.6]} 26. Rxd3 {[%clk 0:02:15.7]}
26... Qxd3 {[%clk 0:02:01.5]} 27. Qe3 {[%clk 0:02:13.7]} 27... Qxe3 {[%clk
0:01:51.9]} 28. Rxe3 {[%clk 0:02:14.6]} 28... b6 {[%clk 0:01:52.7]} 29. Re2
{[%clk 0:01:57.2]} 29... Rd4 {[%clk 0:01:52]} 30. Rf2 {[%clk 0:01:57.3]} 30...
a5 {[%clk 0:01:35.1]} 31. f5 {[%clk 0:01:39.3]} 31... e5 {[%clk 0:01:33.3]} 32.
Re2 {[%clk 0:01:37.5]} 32... Nd7 {[%clk 0:01:19.9]} 33. Bd5 {[%clk 0:01:31.9]}
33... Kf8 {[%clk 0:01:19.2]} 34. Bc6 {[%clk 0:01:18.2]} 34... f6 {[%clk
0:01:18.5]} 35. Bxd7 {[%clk 0:01:14.5]} 35... Rxd7 {[%clk 0:01:17.4]} 36. a3
{[%clk 0:01:12.3]} 36... Rd3 {[%clk 0:01:15.6]} 37. Rb2 {[%clk 0:01:12]} 37...
Kg8 {[%clk 0:01:05.7]} 38. Kg2 {[%clk 0:00:53.7]} 38... Rg3+ {[%clk 0:01:01.3]}
39. Kh2 {[%clk 0:00:53.6]} 39... Rc3 {[%clk 0:01:01]} 40. Kg2 {[%clk 0:00:53.7]}
40... Kh7 {[%clk 0:01:00.2]} 41. Kh2 {[%clk 0:00:23.2]} 41... Kh6 {[%clk
0:00:59.3]} 42. b4 {[%clk 0:00:21.2]} 42... Rxc4 {[%clk 0:00:53.2]} 43. bxa5
{[%clk 0:00:20.5]} 43... bxa5 {[%clk 0:00:54.1]} 44. Rb7 {[%clk 0:00:15]} 44...
Rc2+ {[%clk 0:00:50.6]} 45. Kg1 {[%clk 0:00:14.9]} 45... Rc3 {[%clk 0:00:50.5]}
46. Kg2 {[%clk 0:00:15.3]} 46... Rxa3 {[%clk 0:00:48.9]} 47. Ra7 {[%clk
0:00:14.8]} 47... a4 {[%clk 0:00:47.9]} 48. Ra6 {[%clk 0:00:14.4]} 48... Rg3+
{[%clk 0:00:44.9]} 49. Kh2 {[%clk 0:00:14.3]} 49... a3 {[%clk 0:00:45.4]} 50.
Ra7 {[%clk 0:00:14.6]} 50... Rb3 {[%clk 0:00:45]} 51. Kg2 {[%clk 0:00:14.9]}
51... e4 {[%clk 0:00:41.6]} 52. Ra4 {[%clk 0:00:14]} 52... Rb2+ {[%clk
0:00:40.1]} 0-1